lending/lending_fUSD_20250418
["ID","MTS","AMOUNT","RATE_DAILY","PERIOD"]
[358342727,1744965041113,-231.62246182,0.00051999,120]
[358342728,1744965041122,-359.78826464,0.00051999,120]
[358342729,1744965041132,-164.15492604,0.00051999,120]
[358342730,1744965041141,-500.0,0.00051999,120]
[358342731,1744965041150,-500.0,0.00051999,120]
[358342732,1744965041159,-500.0,0.00051999,120]
[358342733,1744965041168,-500.0,0.00051999,120]
[358342734,1744965041177,-204.63375548,0.00051999,120]
[358342735,1744965041186,-500.0,0.00051999,120]
[358342736,1744965041196,-500.0,0.00051999,120]
[358342737,1744965041205,-500.0,0.00051999,120]
[358342738,1744965041215,-500.0,0.00051999,120]
[358342739,1744965041225,-280.63769461,0.00051999,120]
[358342740,1744965041234,-500.0,0.00051999,120]
[358342741,1744965041243,-500.0,0.00051999,120]
[358342742,1744965041252,-500.0,0.00051999,120]
[358342743,1744965041261,-600.0,0.00051999,120]
[358342745,1744965041270,-500.0,0.00051999,120]
[358342747,1744965041280,-500.0,0.00051999,120]
[358342749,1744965041289,-194.52359327,0.00051999,7]
[358342751,1744965041299,-193.40309233,0.00052,3]
[358342752,1744965041307,-200.0,0.00052,2]
[358342753,1744965041317,-99999.999999,0.00052,5]
[358342754,1744965041326,-1000.0,0.00052008,2]
[358342755,1744965041336,-757.4524118,0.00052028,24]
[358342756,1744965041345,-164.34264902,0.00052028,28]
[358342757,1744965041354,-167.08,0.00052051,2]
[358342758,1744965041367,-1043.96909841,0.00052073,2]
[358342759,1744965041376,-782.595,0.00052073,95]
[358342760,1744965041386,-500.0,0.00052079,120]
[358342761,1744965041395,-673.32317315,0.00052101,30]
[358342762,1744965041404,-8023.9813546,0.00052106,2]
[358342763,1744965041413,-11490.7120633,0.00052106,2]
[358342764,1744965041423,-98341.3262792,0.00052106,2]
[358342765,1744965041432,-90824.60253327,0.00052128,30]
[358342766,1744965041445,-33750.47119513,0.00052128,30]
[358342767,1744965041481,-62.5937677,0.00052128,30]
[358342780,1744965043450,-873.83397675,0.00052128,30]
[358342781,1744965043471,-156.55839659,0.00052128,30]
[358342782,1744965043483,-181.4282957,0.00052128,30]
[358342783,1744965043493,-6099.43061822,0.00052128,60]
[358342784,1744965043503,-1085.92881324,0.00052128,30]
[358342785,1744965043513,-1000.0,0.00052128,60]
[358342786,1744965043522,-1000.0,0.00052128,3]
[358342787,1744965043532,-1000.0,0.00052128,30]
[358342788,1744965043541,-177.75065927,0.00052142,2]
[358342789,1744965043552,-2503.84,0.00052169,2]
[358342790,1744965043562,-162.19684763,0.00052173,10]
[358342791,1744965043572,-511.18428202,0.00052173,10]
[358342792,1744965043582,-500.0,0.00052173,10]
[358342793,1744965043591,-543.3110312,0.00052173,10]
[358342794,1744965043601,-23900.0,0.00052173,2]
[358342795,1744965043611,-4381.7250371,0.00052198,15]
[358342796,1744965043620,-8214.59670167,0.00052239,2]
[358342797,1744965043630,-207.97,0.00052298,2]
[358342798,1744965043640,-294.82,0.00052442,120]
[358342799,1744965043650,-5490.88,0.00052621,2]
[358342800,1744965043660,-199.14,0.00052662,2]
[358342801,1744965043669,-165.95,0.00052746,2]
[358342802,1744965043679,-4195.74,0.00054226,2]
[358342803,1744965043689,-500.0,0.00054356,2]
[358342804,1744965043698,-207.97,0.00054562,2]
[358342805,1744965043708,-168.09,0.00054645,2]
[358342806,1744965043718,-500.0,0.00054773,10]
[358342807,1744965043727,-580.95942999,0.00054794,120]
[358342808,1744965043737,-500.0,0.00054794,120]
[358342809,1744965043746,-500.0,0.00054794,120]
[358342810,1744965043756,-500.0,0.00054794,120]
[358342811,1744965043767,-500.0,0.00054794,120]
[358342812,1744965043777,-500.0,0.00054794,120]
[358342813,1744965043786,-500.0,0.00054794,120]
[358342814,1744965043796,-510.23001231,0.00054794,120]
[358342816,1744965043806,-500.0,0.00054794,2]
[358342817,1744965043816,-637.15119655,0.00054794,120]
[358342818,1744965043826,-500.0,0.00054794,120]
[358342819,1744965043836,-500.0,0.00054794,120]
[358342820,1744965043846,-500.0,0.00054794,120]
[358342821,1744965043856,-570.68940391,0.00054794,120]
[358342822,1744965043866,-500.0,0.00054794,120]
[358342823,1744965043875,-500.0,0.00054794,120]
[358342824,1744965043885,-500.0,0.00054794,120]
[358342825,1744965043894,-500.0,0.00054794,120]
[358342826,1744965043905,-500.0,0.00054794,120]
[358342827,1744965043914,-500.0,0.00054794,120]
[358342828,1744965043924,-500.0,0.00054794,120]
[358342829,1744965043933,-500.0,0.00054794,120]
[358342830,1744965043943,-500.0,0.00054794,120]
[358342832,1744965043952,-500.0,0.00054794,120]
[358342834,1744965043962,-500.0,0.00054794,120]
[358342836,1744965043972,-500.0,0.00054794,120]
[358342838,1744965043982,-500.0,0.00054794,120]
[358342839,1744965043991,-500.0,0.00054794,120]
[358342840,1744965044000,-518.16622763,0.00054794,120]
[358342842,1744965044011,-517.3531088,0.00054794,120]
[358342843,1744965044022,-500.0,0.00054794,120]
[358342844,1744965044031,-500.0,0.00054794,120]
[358342845,1744965044040,-538.88591747,0.00054794,120]
[358342846,1744965044050,-500.0,0.00054794,120]
[358342847,1744965044060,-500.0,0.00054794,120]
[358342848,1744965044070,-500.0,0.00054794,120]
[358342849,1744965044079,-500.0,0.00054794,120]
[358342850,1744965044089,-619.73715535,0.00054794,120]
[358342851,1744965044099,-431.14058475,0.00054794,120]
[358342852,1744965044109,-500.0,0.00054794,30]
[358342853,1744965044119,-500.0,0.00054794,120]
[358342854,1744965044129,-500.0,0.00054794,120]
[358342855,1744965044139,-500.0,0.00054794,120]
[358342856,1744965044149,-500.0,0.00054794,120]
[358342857,1744965044159,-2120.30498915,0.00054794,120]
[358342858,1744965044168,-500.0,0.00054794,120]
[358342859,1744965044178,-583.48413484,0.00054794,120]
[358342860,1744965044187,-500.0,0.00054794,120]
[358342861,1744965044196,-500.0,0.00054794,120]
[358342862,1744965044205,-500.0,0.00054794,120]
[358342863,1744965044215,-500.0,0.00054794,120]
[358342864,1744965044224,-500.0,0.00054794,120]
[358342865,1744965044234,-500.0,0.00054794,120]
[358342866,1744965044243,-500.0,0.00054794,120]
[358342867,1744965044252,-415.29076309,0.00054794,120]
[358342868,1744965044262,-523.1004914,0.00054794,120]
[358342869,1744965044271,-531.06554554,0.00054794,120]
[358342870,1744965044280,-500.0,0.00054794,120]
[358342871,1744965044287,-323.38357231,0.00054794,120]
[358342872,1744965044296,-152.453833,0.00054794,120]
[358342873,1744965044304,-1615.941103,0.00054794,120]
[358342874,1744965044313,-500.0,0.00054794,120]
[358342875,1744965044321,-543.35201532,0.00054794,120]
[358342876,1744965044331,-500.0,0.00054794,120]
[358342877,1744965044340,-261.79712402,0.00054794,120]
[358342878,1744965044350,-500.0,0.00054794,120]
[358342879,1744965044360,-500.0,0.00054794,120]
[358342880,1744965044370,-500.0,0.00054794,120]
[358342881,1744965044383,-500.0,0.00054794,120]
[358342882,1744965044393,-1250.02,0.00054794,120]
[358342883,1744965044403,-500.0,0.00054794,120]
[358342884,1744965044412,-580.78585397,0.00054794,120]
[358342885,1744965044422,-500.0,0.00054794,120]
[358342886,1744965044432,-492.96112703,0.00054794,120]
[358342887,1744965044441,-576.67710726,0.00054794,120]
[358342888,1744965044451,-568.6719736,0.00054794,120]
[358342889,1744965044460,-831.64,0.00054794,120]
[358342890,1744965044470,-501.622899,0.00054794,120]
[358342891,1744965044480,-500.0,0.00054794,120]
[358342892,1744965044490,-591.76,0.00054794,120]
[358342893,1744965044499,-500.0,0.00054794,120]
[358342894,1744965044508,-500.0,0.00054794,120]
[358342895,1744965044518,-207.86324405,0.00054794,120]
[358342896,1744965044528,-500.0,0.00054794,120]
[358342897,1744965044538,-500.0,0.00054794,120]
[358342898,1744965044547,-2013.03,0.00054794,120]
[358342899,1744965044557,-2395.443079,0.00054794,120]
[358342900,1744965044566,-500.0,0.00054794,120]
[358342901,1744965044576,-160.922292,0.00054794,120]
[358342902,1744965044585,-612.45,0.00054794,120]
[358342903,1744965044594,-500.0,0.00054794,120]
[358342904,1744965044602,-500.0,0.00054794,120]
[358342905,1744965044612,-500.0,0.00054794,120]
[358342906,1744965044621,-1583.91,0.00054794,120]
[358342907,1744965044631,-500.0,0.00054794,120]
[358342908,1744965044641,-500.0,0.00054794,120]
[358342909,1744965044650,-538.14970533,0.00054794,120]
[358342910,1744965044659,-500.0,0.00054794,120]
[358342911,1744965044668,-500.0,0.00054794,120]
[358342912,1744965044678,-789.97,0.00054794,120]
[358342913,1744965044687,-500.0,0.00054794,120]
[358342914,1744965044696,-500.0,0.00054794,120]
[358342915,1744965044706,-5573.03,0.00054794,120]
[358342916,1744965044715,-500.0,0.00054794,120]
[358342917,1744965044724,-500.0,0.00054794,120]
[358342918,1744965044734,-500.0,0.00054794,120]
[358342919,1744965044743,-500.0,0.00054794,120]
[358342920,1744965044752,-500.0,0.00054794,120]
[358342921,1744965044761,-500.0,0.00054794,120]
[358342922,1744965044771,-539.92431498,0.00054794,120]
[358342923,1744965044780,-500.0,0.00054794,120]
[358342924,1744965044790,-500.0,0.00054794,120]
[358342925,1744965044799,-500.0,0.00054794,120]
[358342926,1744965044808,-500.0,0.00054794,120]
[358342927,1744965044818,-500.0,0.00054794,120]
[358342928,1744965044827,-500.0,0.00054794,120]
[358342929,1744965044837,-500.0,0.00054794,120]
[358342930,1744965044847,-500.0,0.00054794,120]
[358342931,1744965044856,-500.0,0.00054794,120]
[358342932,1744965044865,-533.35,0.00054794,120]
[358342933,1744965044875,-500.0,0.00054794,120]
[358342934,1744965044884,-500.0,0.00054794,120]
[358342935,1744965044894,-550.67842126,0.00054794,120]
[358342936,1744965044903,-510.17599747,0.00054794,120]
[358342937,1744965044912,-500.0,0.00054794,120]
[358342938,1744965044922,-503.19142854,0.00054794,2]
[358342939,1744965044931,-500.0,0.00054794,120]
[358342940,1744965044940,-500.0,0.00054794,120]
[358342941,1744965044950,-500.0,0.00054794,120]
[358342942,1744965044959,-500.0,0.00054794,120]
[358342943,1744965044968,-500.0,0.00054794,120]
[358342944,1744965044977,-500.0,0.00054794,120]
[358342945,1744965044987,-509.55384225,0.00054794,120]
[358342946,1744965044996,-537.80034681,0.00054794,120]
[358342947,1744965045006,-533.34022732,0.00054794,120]
[358342948,1744965045016,-500.0,0.00054794,120]
[358342949,1744965045025,-222.91304585,0.00054794,120]
[358342950,1744965045035,-500.0,0.00054794,120]
[358342951,1744965045045,-500.0,0.00054794,120]
[358342952,1744965045054,-500.0,0.00054794,120]
[358342953,1744965045063,-500.0,0.00054794,120]
[358342954,1744965045073,-500.0,0.00054794,120]
[358342955,1744965045083,-1235.03,0.00054794,120]
[358342956,1744965045092,-500.0,0.00054794,120]
[358342957,1744965045101,-286.33857128,0.00054794,120]
[358342958,1744965045110,-500.0,0.00054794,120]
[358342959,1744965045120,-500.0,0.00054794,120]
[358342960,1744965045129,-500.0,0.00054794,120]
[358342961,1744965045138,-500.0,0.00054794,120]
[358342962,1744965045147,-500.0,0.00054794,120]
[358342963,1744965045156,-500.0,0.00054794,120]
[358342964,1744965045166,-500.0,0.00054794,120]
[358342965,1744965045175,-500.0,0.00054794,120]
[358342966,1744965045184,-548.22576014,0.00054794,120]
[358342967,1744965045193,-500.0,0.00054794,120]
[358342968,1744965045203,-500.0,0.00054794,120]
[358342969,1744965045212,-500.0,0.00054794,120]
[358342970,1744965045221,-374.2729607,0.00054794,120]
[358342971,1744965045231,-451.5683127,0.00054794,120]
[358342972,1744965045240,-548.36,0.00054794,120]
[358342973,1744965045250,-500.0,0.00054794,120]
[358342974,1744965045260,-500.0,0.00054794,120]
[358342975,1744965045269,-500.0,0.00054794,120]
[358342976,1744965045279,-500.0,0.00054794,120]
[358342977,1744965045288,-479.30926039,0.00054794,120]
[358342978,1744965045297,-500.0,0.00054794,120]
[358342979,1744965045307,-500.0,0.00054794,120]
[358342980,1744965045316,-1000.0,0.00054794,35]
[358342981,1744965045326,-500.0,0.00054794,120]
[358342982,1744965045335,-500.0,0.00054794,120]
[358342983,1744965045346,-500.0,0.00054794,120]
[358342984,1744965045356,-500.0,0.00054794,120]
[358342985,1744965045365,-152.35112938,0.00054794,120]
[358342986,1744965045375,-500.0,0.00054794,120]
[358342987,1744965045389,-500.0,0.00054794,120]
[358342988,1744965045399,-500.0,0.00054794,120]
[358342989,1744965045408,-500.0,0.00054794,120]
[358342990,1744965045417,-500.0,0.00054794,120]
[358342991,1744965045429,-500.0,0.00054794,120]
[358342992,1744965045438,-551.07327658,0.00054794,120]
[358342993,1744965045448,-500.0,0.00054794,120]
[358342994,1744965045458,-500.0,0.00054794,120]
[358342995,1744965045468,-4216.19,0.00054794,7]
[358342996,1744965045479,-163.15411929,0.00054794,120]
[358342997,1744965045488,-500.0,0.00054794,120]
[358342998,1744965045498,-500.0,0.00054794,120]
[358342999,1744965045509,-500.0,0.00054794,120]
[358343000,1744965045519,-500.0,0.00054794,120]
[358343001,1744965045529,-500.0,0.00054794,120]
[358343002,1744965045539,-500.0,0.00054794,120]
[358343003,1744965045549,-550.40811579,0.00054794,120]
[358343004,1744965045561,-500.0,0.00054794,120]
[358343005,1744965045570,-500.0,0.00054794,120]
[358343006,1744965045580,-500.0,0.00054794,120]
[358343007,1744965045589,-500.0,0.00054794,120]
[358343008,1744965045599,-1060.19,0.00054794,120]
[358343009,1744965045608,-500.0,0.00054794,120]
[358343010,1744965045618,-491.80743713,0.00054794,120]
[358343011,1744965045627,-500.0,0.00054794,120]
[358343012,1744965045637,-500.0,0.00054794,120]
[358343013,1744965045647,-500.0,0.00054794,120]
[358343014,1744965045657,-569.85898389,0.00054794,120]
[358343015,1744965045667,-500.0,0.00054794,120]
[358343016,1744965045676,-500.0,0.00054794,120]
[358343017,1744965045685,-500.0,0.00054794,120]
[358343018,1744965045695,-500.0,0.00054794,120]
[358343019,1744965045704,-450.4446175,0.00054794,59]
[358343020,1744965045714,-500.0,0.00054794,120]
[358343021,1744965045724,-500.0,0.00054794,120]
[358343022,1744965045734,-500.0,0.00054794,120]
[358343023,1744965045743,-500.0,0.00054794,120]
[358343024,1744965045753,-500.0,0.00054794,120]
[358343025,1744965045762,-594.59626914,0.00054794,120]
[358343026,1744965045772,-3077.58,0.00054794,120]
[358343027,1744965045781,-596.45577494,0.00054794,120]
[358343028,1744965045791,-500.0,0.00054794,120]
[358343029,1744965045800,-202.03614596,0.00054794,120]
[358343030,1744965045810,-500.0,0.00054794,120]
[358343031,1744965045820,-500.0,0.00054794,120]
[358343032,1744965045830,-500.0,0.00054794,120]
[358343033,1744965045839,-500.0,0.00054794,120]
[358343034,1744965045849,-500.0,0.00054794,120]
[358343035,1744965045859,-500.0,0.00054794,120]
[358343036,1744965045869,-500.0,0.00054794,120]
[358343037,1744965045878,-500.0,0.00054794,120]
[358343038,1744965045887,-500.0,0.00054794,120]
[358343039,1744965045896,-500.0,0.00054794,120]
[358343040,1744965045906,-500.0,0.00054794,120]
[358343041,1744965045915,-500.0,0.00054794,120]
[358343042,1744965045925,-500.0,0.00054794,120]
[358343043,1744965045934,-500.0,0.00054794,120]
[358343044,1744965045943,-500.0,0.00054794,120]
[358343045,1744965045953,-500.0,0.00054794,120]
[358343046,1744965045962,-551.01506636,0.00054794,120]
[358343047,1744965045972,-464.08818046,0.00054794,120]
[358343048,1744965045981,-500.0,0.00054794,120]
[358343049,1744965045991,-500.0,0.00054794,120]
[358343050,1744965046001,-500.0,0.00054794,120]
[358343051,1744965046010,-500.0,0.00054794,120]
[358343052,1744965046020,-500.0,0.00054794,120]
[358343053,1744965046029,-500.0,0.00054794,120]
[358343054,1744965046039,-500.0,0.00054794,120]
[358343055,1744965046050,-500.0,0.00054794,120]
[358343056,1744965046059,-500.0,0.00054794,120]
[358343057,1744965046069,-500.0,0.00054794,120]
[358343058,1744965046078,-500.0,0.00054794,120]
[358343059,1744965046088,-500.0,0.00054794,120]
[358343060,1744965046098,-500.0,0.00054794,120]
[358343061,1744965046108,-500.0,0.00054794,120]
[358343062,1744965046117,-500.0,0.00054794,120]
[358343063,1744965046127,-500.0,0.00054794,120]
[358343064,1744965046136,-500.0,0.00054794,120]
[358343065,1744965046146,-500.0,0.00054794,120]
[358343066,1744965046156,-632.31467593,0.00054794,120]
[358343067,1744965046165,-455.42243527,0.00054794,120]
[358343068,1744965046175,-500.0,0.00054794,120]
[358343069,1744965046184,-500.0,0.00054794,120]
[358343070,1744965046193,-500.0,0.00054794,120]
[358343071,1744965046203,-520.8757518,0.00054794,120]
[358343072,1744965046212,-500.0,0.00054794,120]
[358343073,1744965046222,-500.0,0.00054794,120]
[358343074,1744965046231,-500.0,0.00054794,120]
[358343075,1744965046241,-500.0,0.00054794,120]
[358343076,1744965046250,-575.86315633,0.00054794,120]
[358343077,1744965046259,-177.21891754,0.00054794,120]
[358343078,1744965046269,-500.0,0.00054794,120]
[358343079,1744965046279,-500.0,0.00054794,8]
[358343080,1744965046288,-500.0,0.00054794,2]
[358343081,1744965046298,-770.9,0.00054794,120]
[358343082,1744965046307,-500.0,0.00054794,120]
[358343084,1744965046318,-645.97011696,0.00054794,120]
[358343086,1744965046331,-500.0,0.00054794,120]
[358343087,1744965046341,-500.0,0.00054794,30]
[358343088,1744965046351,-500.0,0.00054794,120]
[358343089,1744965046360,-500.0,0.00054794,120]
[358343090,1744965046370,-500.0,0.00054794,120]
[358343091,1744965046382,-500.0,0.00054794,120]
[358343092,1744965046392,-500.0,0.00054794,120]
[358343093,1744965046401,-500.0,0.00054794,120]
[358343094,1744965046411,-500.0,0.00054794,120]
[358343095,1744965046420,-500.0,0.00054794,120]
[358343096,1744965046430,-629.98441736,0.00054794,120]
[358343097,1744965046440,-500.0,0.00054794,120]
[358343098,1744965046450,-208.593675,0.00054794,120]
[358343099,1744965046459,-211.77251394,0.00054794,120]
[358343100,1744965046469,-500.0,0.00054794,120]
[358343101,1744965046479,-500.0,0.00054794,120]
[358343102,1744965046489,-4300.91,0.00054794,120]
[358343103,1744965046499,-500.0,0.00054794,120]
[358343104,1744965046508,-276.68927467,0.00054794,120]
[358343105,1744965046517,-4156.52,0.00054794,120]
[358343106,1744965046526,-500.0,0.00054794,120]
[358343107,1744965046536,-500.0,0.00054794,120]
[358343108,1744965046546,-628.19,0.00054794,120]
[358343109,1744965046555,-291.39185564,0.00054794,120]
[358343110,1744965046564,-500.0,0.00054794,120]
[358343111,1744965046574,-500.0,0.00054794,120]
[358343112,1744965046583,-500.0,0.00054794,120]
[358343113,1744965046593,-500.0,0.00054794,120]
[358343114,1744965046603,-500.0,0.00054794,120]
[358343115,1744965046612,-500.0,0.00054794,120]
[358343116,1744965046622,-556.5724509,0.00054794,120]
[358343117,1744965046632,-500.0,0.00054794,120]
[358343118,1744965046641,-427.49659856,0.00054794,120]
[358343119,1744965046651,-500.0,0.00054794,120]
[358343120,1744965046660,-500.0,0.00054794,120]
[358343121,1744965046670,-500.0,0.00054794,120]
[358343122,1744965046679,-500.0,0.00054794,120]
[358343123,1744965046689,-500.0,0.00054794,120]
[358343124,1744965046698,-500.0,0.00054794,120]
[358343125,1744965046707,-151.0,0.00054794,120]
[358343126,1744965046717,-500.0,0.00054794,120]
[358343127,1744965046727,-151.0,0.00054794,120]
[358343128,1744965046737,-151.0,0.00054794,120]
[358343129,1744965046746,-151.0,0.00054794,120]
[358343130,1744965046757,-500.0,0.00054794,120]
[358343131,1744965046767,-500.0,0.00054794,120]
[358343132,1744965046776,-691.54,0.00054794,120]
[358343133,1744965046786,-151.0,0.00054794,120]
[358343134,1744965046795,-259.06140947,0.00054794,16]
[358343135,1744965046805,-500.0,0.00054794,120]
[358343136,1744965046815,-500.0,0.00054794,120]
[358343137,1744965046824,-500.0,0.00054794,120]
[358343138,1744965046834,-151.0,0.00054794,120]
[358343139,1744965046843,-500.0,0.00054794,120]
[358343140,1744965046853,-500.0,0.00054794,120]
[358343141,1744965046863,-500.0,0.00054794,120]
[358343142,1744965046873,-589.97351567,0.00054794,120]
[358343144,1744965046883,-500.0,0.00054794,2]
[358343146,1744965046892,-500.0,0.00054794,120]
[358343148,1744965046902,-310.46698688,0.00054794,120]
[358343150,1744965046912,-500.0,0.00054794,120]
[358343152,1744965046921,-151.0,0.00054794,120]
[358343154,1744965046930,-500.0,0.00054794,2]
[358343156,1744965046940,-619.0276337,0.00054794,120]
[358343158,1744965046950,-500.0,0.00054794,120]
[358343160,1744965046960,-501.09814111,0.00054794,2]
[358343162,1744965046970,-500.0,0.00054794,120]
[358343181,1744965047137,-500.0,0.00054794,120]
[358343184,1744965047147,-500.0,0.00054794,2]
[358343186,1744965047157,-500.0,0.00054794,120]
[358343188,1744965047166,-489.26613967,0.00054794,120]
[358343190,1744965047176,-500.0,0.00054794,5]
[358343192,1744965047185,-500.0,0.00054794,118]
[358343194,1744965047194,-500.0,0.00054794,120]
[358343195,1744965047204,-500.0,0.00054794,120]
[358343197,1744965047214,-154.504372,0.00054795,2]
[358343198,1744965047225,-500.0,0.00054795,120]
[358343199,1744965047235,-150.0,0.00054795,120]
[358343200,1744965047245,-500.0,0.00054795,120]
[358343201,1744965047254,-150.0,0.00054795,120]
[358343202,1744965047263,-150.0,0.00054795,120]
[358343203,1744965047272,-150.0,0.00054795,60]
[358343204,1744965047282,-150.0,0.00054795,120]
[358343205,1744965047291,-500.0,0.00054795,120]
[358343206,1744965047300,-153.50551222,0.00054795,120]
[358343207,1744965047309,-152.76495601,0.00054795,120]
[358343208,1744965047319,-500.0,0.00054795,120]
[358343209,1744965047328,-150.0,0.00054795,2]
[358343210,1744965047338,-500.0,0.00054795,120]
[358343211,1744965047351,-150.0,0.00054795,120]
[358343212,1744965047361,-150.0,0.00054795,120]
[358343213,1744965047370,-150.50770173,0.00054795,120]
[358343214,1744965047382,-500.0,0.00054795,120]
[358343215,1744965047391,-150.0,0.00054795,120]
[358343216,1744965047401,-238.53124233,0.00054795,120]
[358343217,1744965047411,-150.59084499,0.00054795,120]
[358343218,1744965047422,-151.08602623,0.00054795,120]
[358343219,1744965047431,-150.0,0.00054795,120]
[358343220,1744965047440,-150.0,0.00054795,120]
[358343221,1744965047449,-500.0,0.00054795,120]
[358343222,1744965047459,-151.20010376,0.00054795,120]
[358343223,1744965047468,-500.0,0.00054795,120]
[358343224,1744965047477,-500.0,0.00054795,120]
[358343225,1744965047486,-1292.85,0.00055,120]
[358343226,1744965047495,-3213.73205018,0.00055133,15]
[358343227,1744965047504,-151.730313,0.00055332,120]
[358343228,1744965047514,-165.470165,0.00055332,120]
[358343229,1744965047523,-152.031069,0.00055332,120]
[358343230,1744965047532,-165.470165,0.00055332,120]
[358343231,1744965047541,-1487.11164,0.00055332,120]
[358343232,1744965047551,-1487.11164,0.00055332,120]
[358343233,1744965047561,-151.0,0.00055332,120]
[358343234,1744965047571,-151.0,0.00055332,120]
[358343235,1744965047580,-151.0,0.00055332,120]
[358343236,1744965047589,-500.0,0.00055342,120]
[358343237,1744965047598,-500.0,0.00055342,120]
[358343238,1744965047607,-500.0,0.00055342,120]
[358343239,1744965047616,-500.0,0.00055342,120]
[358343240,1744965047625,-500.0,0.00055342,120]
[358343241,1744965047634,-500.0,0.00055342,2]
[358343242,1744965047644,-500.0,0.00055342,120]
[358343243,1744965047653,-500.0,0.00055342,120]
[358343244,1744965047663,-500.0,0.00055342,120]
[358343245,1744965047672,-500.0,0.00055342,120]
[358343246,1744965047682,-500.0,0.00055342,120]
[358343247,1744965047691,-363.66963034,0.00055342,120]
[358343248,1744965047698,-500.0,0.00055342,120]
[358343249,1744965047707,-554.18727709,0.00055342,120]
[358343250,1744965047716,-500.0,0.00055342,120]
[358343251,1744965047725,-245.21938128,0.00055342,120]
[358343252,1744965047735,-500.0,0.00055342,120]
[358343253,1744965047745,-500.0,0.00055342,120]
[358343254,1744965047754,-500.0,0.00055342,120]
[358343255,1744965047763,-500.0,0.00055342,120]
[358343256,1744965047772,-500.0,0.00055342,120]
[358343257,1744965047782,-500.0,0.00055342,120]
[358343258,1744965047791,-500.0,0.00055342,120]
[358343259,1744965047801,-500.0,0.00055342,120]
[358343260,1744965047810,-500.0,0.00055342,120]
[358343261,1744965047820,-500.0,0.00055342,120]
[358343262,1744965047829,-500.0,0.00055342,120]
[358343263,1744965047838,-500.0,0.00055342,120]
[358343264,1744965047848,-500.0,0.00055342,30]
[358343265,1744965047857,-500.0,0.00055342,120]
[358343266,1744965047866,-500.0,0.00055342,120]
[358343267,1744965047875,-500.0,0.00055342,120]
[358343268,1744965047885,-500.0,0.00055342,120]
[358343269,1744965047894,-500.0,0.00055342,120]
[358343270,1744965047903,-500.0,0.00055342,120]
[358343271,1744965047912,-500.0,0.00055342,120]
[358343272,1744965047922,-534.45522607,0.00055342,120]
[358343273,1744965047931,-632.59423752,0.00055342,120]
[358343274,1744965047941,-500.0,0.00055342,120]
[358343275,1744965047951,-533.54962335,0.00055342,120]
[358343276,1744965047961,-500.0,0.00055342,120]
[358343277,1744965047970,-1615.941103,0.00055342,120]
[358343278,1744965047980,-496.41954528,0.00055342,120]
[358343279,1744965047989,-539.4909216,0.00055342,120]
[358343280,1744965047999,-571.51125286,0.00055342,120]
[358343281,1744965048009,-543.01442629,0.00055342,120]
[358343282,1744965048018,-500.0,0.00055342,120]
[358343283,1744965048028,-535.27493216,0.00055342,120]
[358343284,1744965048038,-1250.02,0.00055342,120]
[358343285,1744965048048,-500.0,0.00055342,120]
[358343286,1744965048058,-500.0,0.00055342,120]